bitfinex-derivatives/quotes_BTCF0:USTF0_20260118
["timestamp","ask_amount","ask_price","bid_price","bid_amount"]
[1768776055714,0.02278947,95534.0,95524.0,0.010472]
[1768776055912,0.02278947,95533.0,95524.0,0.010472]
[1768776056113,0.010471,95535.0,95524.0,0.010472]
[1768776056315,0.02279256,95534.0,95524.0,0.010472]
[1768776056510,0.02279256,95533.0,95524.0,0.010472]
[1768776056710,0.010471,95535.0,95524.0,0.010472]
[1768776056912,0.02279256,95534.0,95524.0,0.010472]
[1768776057111,0.02279256,95533.0,95524.0,0.010472]
[1768776057417,0.010471,95535.0,95524.0,0.010472]
[1768776057717,0.02279646,95534.0,95524.0,0.010472]
[1768776057908,0.02279646,95533.0,95524.0,0.010472]
[1768776058108,0.0227997,95532.0,95524.0,0.010472]
[1768776058304,0.010471,95535.0,95524.0,0.010472]
[1768776058507,0.0227997,95534.0,95524.0,0.010472]
[1768776058712,0.0227997,95533.0,95524.0,0.010472]
[1768776059022,0.0227997,95532.0,95524.0,0.010472]
[1768776059315,0.010471,95535.0,95523.0,0.010472]
[1768776059518,0.02280123,95534.0,95519.0,0.00015702]
[1768776059719,0.02280123,95533.0,95520.0,0.010472]
[1768776059920,0.02280123,95532.0,95523.0,0.010472]
[1768776060120,0.010471,95535.0,95523.0,0.010472]
[1768776060419,0.02280215,95534.0,95524.0,0.010472]
[1768776060620,0.02280215,95533.0,95524.0,0.010472]
[1768776060820,0.08234502,95531.0,95519.0,0.00015702]
[1768776061421,0.07323692,95531.0,95519.0,0.00015702]
[1768776063231,0.07323692,95531.0,95522.0,0.010472]
[1768776064424,0.07323692,95531.0,95520.0,0.010472]
[1768776064619,0.07323692,95531.0,95521.0,0.010472]
[1768776064823,0.08370792,95531.0,95520.0,0.010472]
[1768776066130,0.07323692,95531.0,95520.0,0.010472]
[1768776067317,0.07323692,95531.0,95521.0,0.010472]
[1768776068523,0.07323692,95531.0,95519.0,0.00015702]
[1768776069118,0.07323692,95531.0,95520.0,0.010472]
[1768776070028,0.07323692,95531.0,95521.0,0.010472]
[1768776072330,0.010471,95533.0,95521.0,0.010472]
[1768776072529,0.02281482,95532.0,95524.0,0.00935588]
[1768776072729,0.01047,95536.0,95524.0,0.00935588]
[1768776072919,0.0023026,95544.0,95530.0,0.07913732]
[1768776073121,0.07323692,95549.0,95536.0,0.01047]
[1768776073326,0.07323692,95549.0,95530.0,0.17408644]
[1768776073327,0.07323692,95549.0,95530.0,0.06978144]
[1768776073516,0.07323692,95549.0,95537.0,0.01047]
[1768776073922,0.07323692,95549.0,95531.0,0.010471]
[1768776073923,0.07323692,95549.0,95541.0,0.01047]
[1768776074628,0.07323692,95549.0,95542.0,0.01047]
[1768776075221,0.07323692,95549.0,95543.0,0.01047]
[1768776075930,0.07323692,95549.0,95537.0,0.01047]
[1768776076616,0.07323692,95549.0,95541.0,0.01047]
[1768776076820,0.07323692,95549.0,95542.0,0.01047]
[1768776078127,0.07323692,95549.0,95543.0,0.01047]
[1768776080329,0.07323692,95549.0,95534.0,0.010471]
[1768776080635,0.07323692,95549.0,95544.0,0.010469]
[1768776080834,0.07323692,95549.0,95531.0,0.010471]
[1768776081231,0.07323692,95549.0,95542.0,0.01047]
[1768776081435,0.07323692,95549.0,95547.0,0.010469]
[1768776082842,0.07323692,95549.0,95542.0,0.01047]
[1768776082843,0.07323692,95549.0,95545.0,0.010469]
[1768776083229,0.07323692,95549.0,95546.0,0.010469]
[1768776084236,0.07323692,95549.0,95545.0,0.010469]
[1768776084437,0.00948987,95557.0,95547.0,0.010469]
[1768776084740,0.00948987,95559.0,95547.0,0.010469]
[1768776084930,0.03221517,95558.0,95547.0,0.010469]
[1768776085132,0.00948987,95557.0,95547.0,0.010469]
[1768776085535,0.00948987,95557.0,95548.0,0.010469]
[1768776088137,0.104305,95560.0,95540.0,0.209055]
[1768776088138,0.07493702,95563.0,95541.0,0.00978529]
[1768776088441,0.06544715,95560.0,95556.0,0.010468]
[1768776088838,0.07493702,95560.0,95553.0,0.010469]
[1768776089041,0.00948987,95559.0,95551.0,0.010469]
[1768776089437,0.07493702,95558.0,95551.0,0.010469]
[1768776089636,0.00948987,95557.0,95551.0,0.010469]
[1768776091939,0.00948987,95557.0,95550.0,0.010469]
[1768776092139,0.00948987,95557.0,95551.0,0.010469]
[1768776093443,0.07493702,95557.0,95552.0,0.010469]
[1768776094046,0.07493702,95557.0,95553.0,0.010468]
[1768776094245,0.07493702,95557.0,95554.0,0.010468]
[1768776094941,0.00230212,95564.0,95554.0,0.010468]
[1768776095348,0.00230212,95564.0,95546.0,0.010469]
[1768776095349,0.00230212,95564.0,95555.0,0.010468]
[1768776096741,0.00948987,95563.0,95555.0,0.010468]
[1768776098048,0.00948987,95563.0,95556.0,0.010468]
[1768776099744,0.00948987,95563.0,95550.0,0.010469]
[1768776099945,0.00948987,95563.0,95547.0,0.010469]
[1768776100145,0.00948987,95563.0,95555.0,0.010468]
[1768776100835,0.00948987,95563.0,95554.0,0.010468]
[1768776101744,0.00948987,95563.0,95555.0,0.010468]
[1768776101944,0.00948987,95563.0,95556.0,0.010468]
[1768776102251,0.03265531,95562.0,95556.0,0.010468]
[1768776102549,0.00991015,95562.0,95556.0,0.010468]
[1768776103250,0.09433708,95561.0,95556.0,0.010468]
[1768776103452,0.07158856,95561.0,95556.0,0.010468]
[1768776104044,0.07158856,95561.0,95557.0,0.010468]
[1768776104954,0.00230212,95564.0,95557.0,0.010468]
[1768776105253,0.02274951,95563.0,95558.0,0.010468]
[1768776105456,0.02274951,95562.0,95560.0,0.010468]
[1768776105656,0.00991015,95563.0,95558.0,0.010468]
[1768776105854,0.02275054,95562.0,95558.0,0.010468]
[1768776106055,0.07158856,95563.0,95558.0,0.010468]
[1768776106355,0.03266069,95562.0,95558.0,0.010468]
[1768776106553,0.00991015,95562.0,95558.0,0.010468]
[1768776108060,0.00991015,95562.0,95559.0,0.010468]
[1768776108658,0.00991015,95562.0,95557.0,0.010468]
[1768776110363,0.02260015,95561.0,95558.0,0.010468]
[1768776110560,0.00991015,95562.0,95558.0,0.010468]
[1768776110762,0.02260015,95561.0,95558.0,0.010468]
[1768776110957,0.00991015,95562.0,95558.0,0.010468]
[1768776111162,0.02260015,95561.0,95558.0,0.010468]
[1768776111356,0.00991015,95562.0,95558.0,0.010468]
[1768776111556,0.02260134,95561.0,95558.0,0.010468]
[1768776111749,0.02260134,95561.0,95554.0,0.010468]
[1768776111750,0.00991015,95562.0,95559.0,0.010468]
[1768776111954,0.02260134,95561.0,95559.0,0.010468]
[1768776112150,0.00991015,95562.0,95559.0,0.010468]
[1768776112354,0.02260252,95561.0,95559.0,0.010468]
[1768776112555,0.00991015,95562.0,95559.0,0.010468]
[1768776112757,0.02260252,95561.0,95559.0,0.010468]
[1768776112954,0.00991015,95562.0,95559.0,0.010468]
[1768776113159,0.03192278,95561.0,95544.0,0.06364717]
[1768776113357,0.00932026,95559.0,95552.0,0.010469]
[1768776113558,0.00932026,95559.0,95553.0,0.010468]
[1768776113767,0.104305,95560.0,95549.0,0.010469]
[1768776114555,0.104305,95560.0,95554.0,0.010468]
[1768776114755,0.00932026,95562.0,95554.0,0.010468]
[1768776114955,0.02260611,95561.0,95542.0,0.01047]
[1768776115155,0.02260611,95560.0,95555.0,0.010468]
[1768776115374,0.00932026,95562.0,95553.0,0.010469]
[1768776115677,0.02260776,95561.0,95553.0,0.010469]
[1768776115967,0.02260776,95560.0,95551.0,0.010469]
[1768776116156,0.02260776,95559.0,95551.0,0.010469]
[1768776116358,0.104305,95561.0,95551.0,0.010469]
[1768776116557,0.02260994,95560.0,95550.0,0.010469]
[1768776116759,0.02260994,95559.0,95550.0,0.010469]
[1768776116956,0.114773,95561.0,95550.0,0.010469]
[1768776117160,0.11684994,95560.0,95550.0,0.010469]
[1768776117358,0.02260994,95559.0,95543.0,0.01047]
[1768776117670,0.02260994,95559.0,95551.0,0.010469]
[1768776119359,0.02260994,95559.0,95550.0,0.010469]
[1768776119565,0.02260994,95559.0,95549.0,0.010469]
[1768776120273,0.02260994,95559.0,95550.0,0.010469]
[1768776121068,0.02260994,95559.0,95551.0,0.010469]
[1768776122671,0.02260994,95559.0,95552.0,0.010469]
[1768776123374,0.09424,95558.0,95552.0,0.010469]
[1768776124073,0.09424,95558.0,95550.0,0.010469]
[1768776127878,0.104708,95558.0,95549.0,0.010469]
[1768776129078,0.104708,95558.0,95547.0,0.010469]
[1768776129278,0.09424,95558.0,95547.0,0.010469]
[1768776130479,0.104708,95558.0,95547.0,0.010469]
[1768776130674,0.09424,95558.0,95548.0,0.010469]
[1768776130879,0.104708,95558.0,95548.0,0.010469]
[1768776134283,0.104708,95558.0,95546.0,0.010469]
[1768776134780,0.010468,95557.0,95546.0,0.010469]
[1768776135379,0.00932026,95556.0,95538.0,0.00015702]
[1768776135585,0.00932026,95551.0,95541.0,0.01047]
[1768776135976,0.00932026,95551.0,95542.0,0.01047]
[1768776136280,0.010469,95553.0,95542.0,0.01047]
[1768776136579,0.01978826,95554.0,95538.0,0.00015702]
[1768776136985,0.01978826,95554.0,95543.0,0.01047]
[1768776137486,0.01978826,95554.0,95538.0,0.00015702]
[1768776137487,0.010469,95553.0,95538.0,0.00015702]
[1768776138387,0.00932026,95554.0,95539.0,0.01047]
[1768776139277,0.010469,95550.0,95539.0,0.01047]
[1768776139784,0.010469,95550.0,95538.0,0.00015702]
[1768776140185,0.010469,95550.0,95538.0,0.01062702]
[1768776140987,0.08075077,95558.0,95538.0,0.01062702]
[1768776141187,0.02258702,95557.0,95538.0,0.01062702]
[1768776141379,0.08075077,95558.0,95538.0,0.01062702]
[1768776141685,0.0225872,95557.0,95538.0,0.01062702]
[1768776141886,0.08075077,95558.0,95538.0,0.01062702]
[1768776142077,0.0225872,95557.0,95538.0,0.01062702]
[1768776142281,0.08075077,95558.0,95538.0,0.01062702]
[1768776142479,0.010469,95550.0,95538.0,0.01062702]
[1768776144183,0.010469,95549.0,95538.0,0.01062702]
[1768776144490,0.010469,95549.0,95538.0,0.00015702]
[1768776144788,0.010469,95548.0,95538.0,0.00015702]
[1768776144987,0.010469,95547.0,95538.0,0.00015702]
[1768776147490,0.010469,95546.0,95538.0,0.00015702]
[1768776149391,0.010469,95545.0,95538.0,0.00015702]
[1768776151394,0.01047,95544.0,95538.0,0.00015702]
[1768776153799,0.01047,95543.0,95538.0,0.00015702]
[1768776154299,0.01047,95544.0,95538.0,0.00015702]
[1768776154692,0.01047,95543.0,95538.0,0.00015702]
[1768776156094,0.010469,95548.0,95538.0,0.00015702]
[1768776156095,0.01047,95542.0,95538.0,0.00015702]
[1768776157102,0.01047,95543.0,95538.0,0.00015702]
[1768776157502,0.010469,95547.0,95538.0,0.00015702]
[1768776157698,0.01047,95542.0,95538.0,0.00015702]
[1768776157900,0.01047,95544.0,95538.0,0.00015702]
[1768776158205,0.01047,95545.0,95538.0,0.00015702]
[1768776159104,0.010469,95547.0,95538.0,0.00015702]
[1768776159704,0.00987184,95548.0,95538.0,0.00015702]
[1768776160004,0.010469,95547.0,95538.0,0.00015702]
[1768776160805,0.104709,95551.0,95539.0,0.01047]
[1768776160806,0.00987184,95550.0,95539.0,0.01047]
[1768776160998,0.00987184,95550.0,95538.0,0.00015702]
[1768776161201,0.00987184,95549.0,95538.0,0.00015702]
[1768776161500,0.010469,95547.0,95538.0,0.00015702]
[1768776161702,0.010469,95547.0,95538.0,0.01062702]
[1768776161902,0.010469,95548.0,95538.0,0.01062702]
[1768776162304,0.00987184,95549.0,95538.0,0.00015702]
[1768776162305,0.010469,95547.0,95538.0,0.00015702]
[1768776162807,0.010469,95547.0,95538.0,0.01062702]
[1768776162998,0.010469,95547.0,95538.0,0.00015702]
[1768776164404,0.010469,95548.0,95538.0,0.00015702]
[1768776164706,0.02034084,95548.0,95538.0,0.00015702]
[1768776164908,0.02034084,95548.0,95538.0,0.01062702]
[1768776165202,0.00987184,95548.0,95539.0,0.01047]
[1768776174319,0.02034084,95548.0,95539.0,0.01047]
[1768776174720,0.010469,95548.0,95539.0,0.01047]
[1768776182825,0.00902876,95547.0,95533.0,0.010471]
[1768776183040,0.00269512,95546.0,95533.0,0.010471]
[1768776183331,0.00269512,95546.0,95537.0,0.01047]
[1768776183631,0.00269512,95546.0,95538.0,0.01047]
[1768776184537,0.07445647,95547.0,95538.0,0.01047]
[1768776186034,0.07445647,95547.0,95536.0,0.01047]
[1768776186239,0.06398747,95547.0,95538.0,0.01047]
[1768776186741,0.07445647,95547.0,95538.0,0.01047]
[1768776189237,0.06398747,95547.0,95538.0,0.01047]
[1768776190241,0.07445647,95547.0,95538.0,0.01047]
[1768776197649,0.06398747,95547.0,95538.0,0.01047]
[1768776197852,0.06398747,95547.0,95537.0,0.01047]
[1768776198752,0.06398747,95547.0,95538.0,0.01047]
[1768776200150,0.010469,95548.0,95538.0,0.01047]
[1768776201949,0.01295779,95547.0,95531.0,0.010471]
[1768776202143,0.00248879,95547.0,95530.0,0.010471]
[1768776202344,0.010469,95545.0,95535.0,0.01047]
[1768776202653,0.010469,95546.0,95535.0,0.01047]
[1768776202853,0.010469,95546.0,95536.0,0.01047]
[1768776203653,0.010469,95545.0,95535.0,0.010471]
[1768776203849,0.010469,95546.0,95535.0,0.010471]
[1768776206249,0.00248786,95544.0,95528.0,0.010471]
[1768776206445,0.10427773,95540.0,95527.0,0.010471]
[1768776206646,0.10427773,95540.0,95532.0,0.010471]
[1768776206851,0.00248786,95544.0,95532.0,0.010471]
[1768776207051,0.01295786,95544.0,95532.0,0.010471]
[1768776207253,0.01047,95543.0,95527.0,0.010471]
[1768776208152,0.01047,95543.0,95533.0,0.010471]
[1768776209756,0.11474773,95543.0,95533.0,0.010471]
[1768776209959,0.01047,95542.0,95529.0,0.01277398]
[1768776210158,0.10427773,95540.0,95530.0,0.010471]
[1768776210358,0.10667837,95540.0,95529.0,0.00230298]
[1768776210546,0.01047,95537.0,95529.0,0.00230298]
[1768776210747,0.01047,95538.0,95529.0,0.00230298]
[1768776211061,0.2109561,95540.0,95529.0,0.00230298]
[1768776211251,0.01047,95536.0,95529.0,0.00230298]
[1768776211452,0.00240064,95530.0,95513.0,0.07528388]
[1768776211666,0.00240064,95528.0,95517.0,0.010472]
[1768776212060,0.00240064,95528.0,95512.0,0.010473]
[1768776212456,0.00240064,95528.0,95512.0,0.02453022]
[1768776212655,0.00240064,95528.0,95519.0,0.010472]
[1768776214356,0.00240064,95528.0,95517.0,0.010472]
[1768776214557,0.07713719,95529.0,95517.0,0.010472]
[1768776214760,0.08760819,95529.0,95517.0,0.010472]
[1768776215059,0.08760819,95529.0,95516.0,0.010473]
[1768776215448,0.07713719,95529.0,95517.0,0.010472]
[1768776215653,0.07713719,95529.0,95512.0,0.01405722]
[1768776215654,0.010471,95528.0,95512.0,0.01405722]
[1768776215854,0.010471,95528.0,95511.0,0.010473]
[1768776216457,0.010471,95528.0,95518.0,0.010472]
[1768776218663,0.010471,95527.0,95518.0,0.010472]
[1768776219563,0.010471,95527.0,95519.0,0.010472]
[1768776225169,0.010471,95528.0,95519.0,0.010472]
[1768776226172,0.010471,95528.0,95520.0,0.010472]
[1768776227667,0.00188953,95528.0,95512.0,0.01411829]
[1768776227866,0.01236053,95528.0,95513.0,0.010473]
[1768776228573,0.010471,95528.0,95513.0,0.010473]
[1768776229460,0.010471,95528.0,95518.0,0.010472]
[1768776230275,0.010471,95527.0,95518.0,0.010472]
[1768776230669,0.00164828,95531.0,95515.0,0.010473]
[1768776230875,0.010472,95525.0,95515.0,0.010473]
[1768776231578,0.010472,95525.0,95513.0,0.010473]
[1768776232279,0.010472,95524.0,95512.0,0.0147372]
[1768776232476,0.00177068,95527.0,95509.0,0.00230346]
[1768776232477,0.00177068,95526.0,95509.0,0.00230346]
[1768776232871,0.00177068,95526.0,95511.0,0.010473]
[1768776233277,0.010472,95523.0,95511.0,0.02485187]
[1768776233585,0.10427773,95521.0,95509.0,0.01277646]
[1768776233783,0.10427773,95520.0,95511.0,0.010473]
[1768776234080,0.12685307,95523.0,95510.0,0.010473]
[1768776234280,0.10427773,95521.0,95510.0,0.010473]
[1768776234785,0.10427773,95521.0,95510.0,0.02475526]
[1768776235082,0.11474973,95521.0,95510.0,0.02475526]
[1768776238577,0.10427773,95530.0,95513.0,0.00997599]
[1768776238775,0.10427773,95530.0,95526.0,0.08406768]
[1768776238969,0.08428,95534.0,95528.0,0.08406768]
[1768776239176,0.010471,95532.0,95528.0,0.08406768]
[1768776239379,0.010471,95532.0,95522.0,0.08406768]
[1768776239680,0.010471,95531.0,95522.0,0.08406768]
[1768776239875,0.08428,95534.0,95522.0,0.08406768]
[1768776240378,0.02344589,95533.0,95522.0,0.08406768]
[1768776240577,0.08428,95534.0,95522.0,0.08406768]
[1768776240779,0.02344587,95533.0,95522.0,0.08406768]
[1768776240980,0.09428,95535.0,95523.0,0.09404367]
[1768776241182,0.010471,95534.0,95524.0,0.09404367]
[1768776241381,0.09428,95535.0,95524.0,0.09404367]
[1768776241691,0.09428,95535.0,95525.0,0.00997599]
[1768776242069,0.010471,95534.0,95525.0,0.00997599]
[1768776242272,0.104751,95535.0,95525.0,0.00997599]
[1768776242472,0.010471,95534.0,95525.0,0.09404367]
[1768776242673,0.09428,95535.0,95527.0,0.09404367]
[1768776243484,0.01047,95538.0,95528.0,0.09404367]
[1768776243680,0.02344627,95537.0,95528.0,0.09404367]
[1768776243875,0.02344627,95536.0,95528.0,0.09404367]
[1768776244075,0.10443475,95540.0,95528.0,0.10451467]
[1768776244278,0.02344613,95539.0,95528.0,0.10451467]
[1768776244473,0.02344613,95538.0,95528.0,0.10451467]
[1768776244669,0.02344613,95537.0,95528.0,0.10451467]
[1768776244873,0.00015702,95540.0,95528.0,0.10451467]
[1768776244874,0.02344613,95536.0,95529.0,0.010471]
[1768776245087,0.00015702,95540.0,95529.0,0.010471]
[1768776245284,0.02344641,95539.0,95529.0,0.010471]
[1768776245582,0.02344676,95538.0,95529.0,0.010471]
[1768776245782,0.02344676,95537.0,95528.0,0.09404367]
[1768776245983,0.02344676,95536.0,95528.0,0.09404367]
[1768776246185,0.01062702,95540.0,95528.0,0.09404367]
[1768776246384,0.02344718,95539.0,95528.0,0.09404367]
[1768776246586,0.02344718,95538.0,95528.0,0.10451467]
[1768776246886,0.02344718,95537.0,95528.0,0.09404367]
[1768776247079,0.02344718,95536.0,95528.0,0.10451467]
[1768776247279,0.00015702,95540.0,95529.0,0.010471]
[1768776247480,0.02344768,95539.0,95528.0,0.09404367]
[1768776247679,0.00015702,95540.0,95528.0,0.09404367]
[1768776247680,0.02344768,95538.0,95528.0,0.09404367]
[1768776247880,0.02344768,95537.0,95530.0,0.010471]
[1768776248182,0.02344768,95536.0,95528.0,0.10451467]
[1768776248388,0.00015702,95540.0,95528.0,0.10451467]
[1768776248586,0.02344825,95539.0,95528.0,0.10451467]
[1768776248789,0.02344825,95538.0,95528.0,0.10451467]
[1768776248982,0.02344825,95537.0,95530.0,0.010471]
[1768776249186,0.02344825,95536.0,95530.0,0.010471]
[1768776249383,0.00015702,95540.0,95528.0,0.10451467]
[1768776249684,0.0234489,95539.0,95528.0,0.09404367]
[1768776249884,0.0234489,95538.0,95528.0,0.09404367]
[1768776250084,0.0234489,95537.0,95528.0,0.09404367]
[1768776250285,0.0234489,95536.0,95528.0,0.09404367]
[1768776250488,0.00015702,95540.0,95528.0,0.09404367]
[1768776250686,0.02344963,95539.0,95528.0,0.09404367]
[1768776250896,0.02344963,95538.0,95528.0,0.09404367]
[1768776251192,0.00015702,95540.0,95528.0,0.09404367]
[1768776251193,0.02344963,95537.0,95528.0,0.09404367]
[1768776251393,0.02344963,95536.0,95528.0,0.09404367]
[1768776251584,0.01047,95539.0,95528.0,0.09404367]
[1768776251784,0.02345047,95538.0,95528.0,0.09404367]
[1768776252090,0.02345047,95537.0,95528.0,0.09404367]
[1768776252393,0.02345047,95536.0,95528.0,0.09404367]
[1768776252601,0.00015702,95540.0,95528.0,0.09404367]
[1768776252894,0.0234514,95539.0,95528.0,0.09404367]
[1768776253087,0.0234514,95538.0,95528.0,0.09404367]
[1768776253391,0.0234514,95537.0,95528.0,0.09404367]
[1768776253592,0.0234514,95536.0,95528.0,0.09404367]
[1768776253789,0.01047,95537.0,95528.0,0.09404367]
[1768776253993,0.02345244,95536.0,95528.0,0.09404367]
[1768776254192,0.01047,95537.0,95528.0,0.09404367]
[1768776254384,0.02345361,95536.0,95528.0,0.08406768]
[1768776254580,0.01047,95537.0,95528.0,0.08406768]
[1768776254785,0.02345361,95536.0,95528.0,0.08406768]
[1768776255086,0.01047,95536.0,95528.0,0.08406768]
[1768776255590,0.01047,95536.0,95528.0,0.09404367]
[1768776256396,0.02345645,95535.0,95528.0,0.09404367]
[1768776256594,0.01047,95536.0,95528.0,0.09404367]
[1768776256893,0.02345645,95535.0,95528.0,0.09404367]
[1768776257092,0.01047,95536.0,95528.0,0.09404367]
[1768776257293,0.0234502,95535.0,95528.0,0.09404367]
[1768776257494,0.01047,95536.0,95528.0,0.09404367]
[1768776257693,0.02345194,95535.0,95528.0,0.09404367]
[1768776257894,0.01047,95536.0,95528.0,0.09404367]
[1768776258198,0.02345194,95535.0,95524.0,0.10451567]
[1768776258389,0.01047,95536.0,95525.0,0.09404367]
[1768776258690,0.02345389,95535.0,95526.0,0.00997599]
[1768776258893,0.01047,95536.0,95526.0,0.09404367]
[1768776259094,0.02345389,95535.0,95526.0,0.09404367]
[1768776259294,0.01047,95536.0,95526.0,0.09404367]
[1768776259494,0.02345622,95535.0,95526.0,0.09404367]
[1768776259795,0.01047,95536.0,95526.0,0.09404367]
[1768776259996,0.02345621,95535.0,95526.0,0.09404367]
[1768776260198,0.01047,95536.0,95527.0,0.09404367]
[1768776260395,0.02345754,95535.0,95527.0,0.09404367]
[1768776260697,0.01047,95536.0,95527.0,0.09404367]
[1768776260892,0.02345754,95535.0,95527.0,0.09404367]
[1768776261091,0.01047,95538.0,95527.0,0.09404367]
[1768776261294,0.02345754,95537.0,95527.0,0.09404367]
[1768776261501,0.02345754,95536.0,95527.0,0.09404367]
[1768776261697,0.02345754,95535.0,95527.0,0.09404367]
[1768776261894,0.01047,95538.0,95527.0,0.09404367]
[1768776262096,0.03392746,95537.0,95527.0,0.09404367]
[1768776262296,0.02345746,95536.0,95527.0,0.09404367]
[1768776262594,0.02345746,95535.0,95527.0,0.09404367]
[1768776262793,0.01047,95537.0,95527.0,0.09404367]
[1768776263098,0.02345736,95536.0,95527.0,0.09404367]
[1768776263298,0.00015702,95540.0,95527.0,0.09404367]
[1768776263500,0.02345742,95539.0,95527.0,0.09404367]
[1768776263798,0.01047,95537.0,95527.0,0.09404367]
[1768776264204,0.01047,95539.0,95527.0,0.09404367]
[1768776264499,0.02345678,95538.0,95528.0,0.00940881]
[1768776264694,0.02345678,95537.0,95528.0,0.00940881]
[1768776264893,0.01047,95539.0,95528.0,0.00940881]
[1768776265096,0.02345748,95538.0,95528.0,0.00940881]
[1768776265295,0.02345748,95537.0,95528.0,0.00940881]
[1768776265499,0.01047,95539.0,95528.0,0.00940881]
[1768776265696,0.02345797,95538.0,95528.0,0.00940881]
[1768776265892,0.02345797,95537.0,95528.0,0.00940881]
[1768776266093,0.01047,95538.0,95528.0,0.00940881]
[1768776266293,0.02345797,95537.0,95528.0,0.00940881]
[1768776266493,0.01047,95538.0,95528.0,0.00940881]
[1768776266799,0.02345873,95537.0,95528.0,0.00940881]
[1768776267001,0.01047,95538.0,95528.0,0.00940881]
[1768776267196,0.02345873,95537.0,95528.0,0.00940881]
[1768776267395,0.01047,95538.0,95528.0,0.00940881]
[1768776267596,0.02345982,95537.0,95528.0,0.00940881]
[1768776267798,0.01047,95538.0,95528.0,0.00940881]
[1768776268098,0.02345982,95537.0,95528.0,0.00940881]
[1768776268299,0.01047,95538.0,95528.0,0.00940881]
[1768776268501,0.02346135,95537.0,95528.0,0.00940881]
[1768776268693,0.01047,95538.0,95528.0,0.00940881]
[1768776268992,0.02346135,95537.0,95528.0,0.00940881]
[1768776269193,0.01047,95538.0,95528.0,0.00940881]
[1768776269392,0.02346219,95537.0,95528.0,0.00940881]
[1768776269597,0.02346219,95536.0,95528.0,0.00940881]
[1768776269793,0.01047,95538.0,95528.0,0.00940881]
[1768776269994,0.02346219,95537.0,95528.0,0.00940881]
[1768776270195,0.02346219,95536.0,95528.0,0.00940881]
[1768776270496,0.01047,95538.0,95527.0,0.08406768]
[1768776270796,0.0234619,95537.0,95527.0,0.08406768]
[1768776270997,0.0234619,95536.0,95527.0,0.08406768]
[1768776271301,0.01047,95538.0,95527.0,0.08406768]
[1768776271601,0.02346195,95537.0,95527.0,0.08406768]
[1768776271900,0.02346195,95536.0,95527.0,0.09347649]
[1768776272091,0.01047,95538.0,95527.0,0.09347649]
[1768776272292,0.02346195,95537.0,95527.0,0.09347649]
[1768776272488,0.02346195,95536.0,95527.0,0.09347649]
[1768776272701,0.01047,95538.0,95527.0,0.09347649]
[1768776272999,0.02346217,95537.0,95527.0,0.09347649]
[1768776273201,0.02346217,95536.0,95527.0,0.09347649]
[1768776273398,0.01047,95538.0,95527.0,0.09347649]
[1768776273698,0.02346206,95537.0,95527.0,0.09347649]
[1768776273898,0.02346206,95536.0,95527.0,0.09347649]
[1768776274093,0.01047,95538.0,95527.0,0.09347649]
[1768776274293,0.02346206,95537.0,95527.0,0.09347649]
[1768776274493,0.02346206,95536.0,95527.0,0.09347649]
[1768776274701,0.01047,95539.0,95527.0,0.09347649]
[1768776274999,0.02346191,95538.0,95527.0,0.09347649]
[1768776275199,0.02346191,95537.0,95527.0,0.09347649]
[1768776275399,0.02346191,95536.0,95527.0,0.09347649]
[1768776275588,0.01047,95539.0,95527.0,0.09347649]
[1768776275792,0.02346177,95538.0,95527.0,0.09347649]
[1768776276000,0.02346177,95537.0,95527.0,0.09347649]
[1768776276203,0.02346167,95536.0,95527.0,0.09347649]
[1768776276403,0.01047,95539.0,95527.0,0.09347649]
[1768776276602,0.02346167,95538.0,95527.0,0.09347649]
[1768776276799,0.02346167,95537.0,95527.0,0.09347649]
[1768776277097,0.02346167,95536.0,95527.0,0.09347649]
[1768776277402,0.10475,95539.0,95527.0,0.09347649]
[1768776277593,0.02346163,95538.0,95527.0,0.09347649]
[1768776277795,0.02346163,95537.0,95527.0,0.09347649]
[1768776277991,0.02346163,95536.0,95527.0,0.09347649]
[1768776278204,0.10475,95539.0,95527.0,0.09347649]
[1768776278504,0.0234616,95538.0,95527.0,0.09347649]
[1768776278704,0.0234616,95537.0,95527.0,0.09347649]
[1768776278902,0.0234616,95536.0,95527.0,0.09347649]
[1768776279210,0.10475,95539.0,95527.0,0.09347649]
[1768776279405,0.02346162,95538.0,95527.0,0.09347649]
[1768776279608,0.02346162,95537.0,95527.0,0.09347649]
[1768776279803,0.02346162,95536.0,95527.0,0.09347649]
[1768776280004,0.01047,95538.0,95527.0,0.09347649]
[1768776280205,0.02346162,95537.0,95527.0,0.09347649]
[1768776280396,0.02346162,95536.0,95527.0,0.09347649]
[1768776280593,0.01047,95538.0,95527.0,0.09347649]
[1768776280800,0.02346167,95537.0,95527.0,0.09347649]
[1768776281000,0.02346167,95536.0,95527.0,0.09347649]
[1768776281192,0.01047,95538.0,95527.0,0.09347649]
[1768776281393,0.02346178,95537.0,95527.0,0.09347649]
[1768776281605,0.02346178,95536.0,95527.0,0.09347649]
[1768776281806,0.01047,95538.0,95527.0,0.09347649]
[1768776282006,0.02346178,95537.0,95527.0,0.09347649]
[1768776282208,0.02346178,95536.0,95527.0,0.09347649]
[1768776282404,0.10475,95539.0,95527.0,0.09347649]
[1768776282604,0.02346192,95538.0,95527.0,0.09347649]
[1768776282802,0.02346192,95537.0,95527.0,0.09347649]
[1768776283002,0.02346192,95536.0,95527.0,0.09347649]
[1768776283203,0.10475,95539.0,95527.0,0.09347649]
[1768776283406,0.02346211,95538.0,95527.0,0.09347649]
[1768776283599,0.02346211,95537.0,95527.0,0.09347649]
[1768776283800,0.02346211,95536.0,95527.0,0.09347649]
[1768776283998,0.10475,95539.0,95527.0,0.09347649]
[1768776284199,0.02346211,95538.0,95527.0,0.09347649]
[1768776284499,0.02346211,95537.0,95527.0,0.09347649]
[1768776284696,0.02346211,95536.0,95527.0,0.09347649]
[1768776284895,0.10475,95539.0,95527.0,0.09347649]
[1768776285096,0.02346235,95538.0,95527.0,0.09347649]
[1768776285300,0.02346235,95537.0,95527.0,0.09347649]
[1768776285497,0.02346235,95536.0,95527.0,0.09347649]
[1768776285797,0.10475,95539.0,95527.0,0.09347649]
[1768776285999,0.02346263,95538.0,95527.0,0.09347649]
[1768776286197,0.02346263,95537.0,95527.0,0.09347649]
[1768776286406,0.02346263,95536.0,95527.0,0.09347649]
[1768776286714,0.10475,95539.0,95529.0,0.00935325]
[1768776286911,0.02346298,95538.0,95529.0,0.00935325]
[1768776287111,0.02346298,95537.0,95529.0,0.00935325]
[1768776287311,0.02346298,95536.0,95529.0,0.00935325]
[1768776287513,0.10475,95539.0,95529.0,0.00935325]
[1768776287713,0.02346095,95538.0,95529.0,0.00935325]